fUSD/lending_fUSD_20260614
["ID","MTS","AMOUNT","RATE_DAILY","PERIOD"]
[425011790,1781415033000,-314.87740431,0.00027671,8]
[425011785,1781415033000,-1000.0,0.0002767,8]
[425011791,1781415033000,-314.87740431,0.00027671,8]
[425011824,1781415033000,-314.87740431,0.00027671,8]
[425011825,1781415033000,-314.87740431,0.00027671,8]
[425011792,1781415033000,-314.87740431,0.00027671,8]
[425011820,1781415033000,-314.87740431,0.00027671,8]
[425011826,1781415033000,-314.87740431,0.00027671,8]
[425011822,1781415033000,-314.87740431,0.00027671,8]
[425011823,1781415033000,-314.87740431,0.00027671,8]
[425011821,1781415033000,-314.87740431,0.00027671,8]
[425011827,1781415033000,-314.87740431,0.00027671,8]
[425011828,1781415033000,-314.87740431,0.00027671,8]
[425011829,1781415033000,-314.87740431,0.00027671,8]
[425011832,1781415033000,-314.87740431,0.00027671,8]
[425011817,1781415033000,-314.87740431,0.00027671,8]
[425011831,1781415033000,-314.87740431,0.00027671,8]
[425011833,1781415033000,-314.87740431,0.00027671,8]
[425011835,1781415033000,-314.87740431,0.00027671,8]
[425011838,1781415033000,-314.87740431,0.00027671,8]
[425011834,1781415033000,-314.87740431,0.00027671,8]
[425011837,1781415033000,-314.87740431,0.00027671,8]
[425011836,1781415033000,-314.87740431,0.00027671,8]
[425011839,1781415033000,-314.87740431,0.00027671,8]
[425011840,1781415033000,-314.87740431,0.00027671,8]
[425011843,1781415033000,-314.87740431,0.00027671,8]
[425011844,1781415033000,-314.87740431,0.00027671,8]
[425011842,1781415033000,-314.87740431,0.00027671,8]
[425011841,1781415033000,-314.87740431,0.00027671,8]
[425011830,1781415033000,-314.87740431,0.00027671,8]
[425011818,1781415033000,-314.87740431,0.00027671,8]
[425011819,1781415033000,-314.87740431,0.00027671,8]
[425011816,1781415033000,-314.87740431,0.00027671,8]
[425011789,1781415033000,-314.87740431,0.00027671,8]
[425011794,1781415033000,-314.87740431,0.00027671,8]
[425011787,1781415033000,-301.23045418,0.00027671,8]
[425011793,1781415033000,-314.87740431,0.00027671,8]
[425011786,1781415033000,-2767.6,0.0002767,8]
[425011798,1781415033000,-314.87740431,0.00027671,8]
[425011795,1781415033000,-314.87740431,0.00027671,8]
[425011815,1781415033000,-314.87740431,0.00027671,8]
[425011796,1781415033000,-314.87740431,0.00027671,8]
[425011801,1781415033000,-314.87740431,0.00027671,8]
[425011800,1781415033000,-314.87740431,0.00027671,8]
[425011799,1781415033000,-314.87740431,0.00027671,8]
[425011797,1781415033000,-314.87740431,0.00027671,8]
[425011804,1781415033000,-314.87740431,0.00027671,8]
[425011802,1781415033000,-314.87740431,0.00027671,8]
[425011814,1781415033000,-314.87740431,0.00027671,8]
[425011810,1781415033000,-314.87740431,0.00027671,8]
[425011811,1781415033000,-314.87740431,0.00027671,8]
[425011813,1781415033000,-314.87740431,0.00027671,8]
[425011807,1781415033000,-314.87740431,0.00027671,8]
[425011808,1781415033000,-314.87740431,0.00027671,8]
[425011806,1781415033000,-314.87740431,0.00027671,8]
[425011803,1781415033000,-314.87740431,0.00027671,8]
[425011805,1781415033000,-314.87740431,0.00027671,8]
[425011809,1781415033000,-314.87740431,0.00027671,8]
[425011812,1781415033000,-314.87740431,0.00027671,8]
[425011852,1781415034000,-314.87740431,0.00027671,8]
[425011855,1781415034000,-230.75849437,0.00027671,8]
[425011850,1781415034000,-314.87740431,0.00027671,8]
[425011851,1781415034000,-314.87740431,0.00027671,8]
[425011856,1781415034000,-503.0,0.00027671,10]
[425011845,1781415034000,-314.87740431,0.00027671,8]
[425011847,1781415034000,-314.87740431,0.00027671,8]
[425011848,1781415034000,-314.87740431,0.00027671,8]
[425011849,1781415034000,-314.87740431,0.00027671,8]
[425011846,1781415034000,-314.87740431,0.00027671,8]
[425011854,1781415034000,-314.87740431,0.00027671,8]
[425011853,1781415034000,-314.87740431,0.00027671,8]
[425011858,1781415034000,-1447.85461755,0.00027671,2]
[425011861,1781415034000,-10490.42425741,0.00027671,2]
[425011868,1781415034000,-7474.50282015,0.00027671,2]
[425011866,1781415034000,-11051.74586566,0.00027671,2]
[425011867,1781415034000,-1254.41808677,0.00027671,2]
[425011863,1781415034000,-17580.45633322,0.00027671,2]
[425011862,1781415034000,-603.84235597,0.00027671,2]
[425011864,1781415034000,-6219.94325379,0.00027671,2]
[425011859,1781415034000,-327.86973261,0.00027671,2]
[425011860,1781415034000,-345.38191605,0.00027671,2]
[425011865,1781415034000,-2110.0,0.00027671,2]
[425011857,1781415034000,-5826.1826464,0.00027671,2]
[425011894,1781415038000,-195.53128404,0.00027944,8]
[425011895,1781415038000,-1000.0,0.00027944,8]
[425011891,1781415038000,-1043.3605185,0.00027944,8]
[425011890,1781415038000,-500.0,0.00027942,8]
[425011888,1781415038000,-916.22715086,0.00027845,2]
[425011889,1781415038000,-1226.15,0.00027942,8]
[425011887,1781415038000,-2719.65700123,0.00027845,2]
[425011886,1781415038000,-661.03454004,0.00027845,2]
[425011881,1781415038000,-300.0,0.000277,10]
[425011885,1781415038000,-2500.0,0.00027845,2]
[425011880,1781415038000,-557.03907603,0.00027686,2]
[425011883,1781415038000,-618.07459234,0.00027802,2]
[425011882,1781415038000,-1045.38594652,0.00027711,2]
[425011893,1781415038000,-4262.73,0.00027944,8]
[425011878,1781415038000,-3098.04378792,0.00027671,2]
[425011879,1781415038000,-483.0,0.00027671,10]
[425011877,1781415038000,-172.67,0.0002755,30]
[425011876,1781415038000,-153.47,0.0002755,30]
[425011875,1781415038000,-1108.95326691,0.00027379,2]
[425011873,1781415038000,-410.07257491,0.00027379,2]
[425011874,1781415038000,-2124.97415818,0.00027379,2]
[425011871,1781415038000,-189.18069926,0.00026756,7]
[425011872,1781415038000,-208.66,0.00027123,2]
[425011884,1781415038000,-1045.38594652,0.00027831,2]
[425011892,1781415038000,-1043.36051849,0.00027944,8]
[425011896,1781415038000,-307.8874315,0.00027944,7]
[425011912,1781415038000,-500.0,0.00027944,8]
[425011923,1781415038000,-500.0,0.00027944,8]
[425011921,1781415038000,-500.0,0.00027944,8]
[425011916,1781415038000,-500.0,0.00027944,2]
[425011917,1781415038000,-1000.0,0.00027944,8]
[425011918,1781415038000,-500.0,0.00027944,15]
[425011915,1781415038000,-500.0,0.00027944,8]
[425011914,1781415038000,-500.0,0.00027944,8]
[425011913,1781415038000,-500.0,0.00027944,8]
[425011920,1781415038000,-500.0,0.00027944,8]
[425011919,1781415038000,-500.0,0.00027944,8]
[425011897,1781415038000,-192.1125685,0.00027944,7]
[425011910,1781415038000,-129.02946151,0.00027944,8]
[425011911,1781415038000,-370.97053849,0.00027944,8]
[425011902,1781415038000,-500.0,0.00027944,7]
[425011905,1781415038000,-449.63305076,0.00027944,8]
[425011908,1781415038000,-303.07318437,0.00027944,8]
[425011903,1781415038000,-620.37599545,0.00027944,7]
[425011907,1781415038000,-196.92681563,0.00027944,8]
[425011906,1781415038000,-150.0,0.00027944,20]
[425011909,1781415038000,-500.0,0.00027944,8]
[425011904,1781415038000,-2317.96694924,0.00027944,8]
[425011900,1781415038000,-500.0,0.00027944,7]
[425011901,1781415038000,-500.0,0.00027944,7]
[425011898,1781415038000,-500.0,0.00027944,7]
[425011899,1781415038000,-500.0,0.00027944,7]
[425011922,1781415038000,-500.0,0.00027944,8]
[425011926,1781415039000,-334.0,0.00027945,5]
[425011931,1781415039000,-4963.1132009,0.00027945,6]
[425011925,1781415039000,-500.0,0.00027944,8]
[425011927,1781415039000,-271.0,0.00027945,5]
[425011930,1781415039000,-11882.86579171,0.00027945,6]
[425011924,1781415039000,-500.0,0.00027944,8]
[425011929,1781415039000,-293.0,0.00027945,5]
[425011934,1781415039000,-9561.50740717,0.00027945,6]
[425011936,1781415039000,-5400.0,0.00027945,6]
[425011933,1781415039000,-2439.21906532,0.00027945,6]
[425011937,1781415039000,-1576.94745,0.00027945,6]
[425011935,1781415039000,-339.88265974,0.00027945,6]
[425011932,1781415039000,-775.32092544,0.00027945,6]
[425011951,1781415040000,-172.68,0.0002755,30]
[425011953,1781415040000,-546.87,0.00027935,10]
[425011952,1781415040000,-153.48,0.0002755,30]
[425011954,1781415040000,-443.0,0.00027944,10]
[425011955,1781415040000,-42413.0354767,0.00027945,6]
[425011957,1781415040000,-19189.38826412,0.00027945,6]
[425011956,1781415040000,-18021.98097733,0.00027945,6]
[425011966,1781415040000,-500.0,0.00027945,8]
[425011959,1781415040000,-3000.0,0.00027945,3]
[425011958,1781415040000,-94415.10246338,0.00027945,6]
[425011960,1781415040000,-500.0,0.00027945,8]
[425011964,1781415040000,-500.0,0.00027945,8]
[425011965,1781415040000,-500.0,0.00027945,8]
[425011962,1781415040000,-500.0,0.00027945,8]
[425011963,1781415040000,-500.0,0.00027945,8]
[425011961,1781415040000,-500.0,0.00027945,8]
[425012005,1781415041000,-961.38,0.00027945,8]
[425012002,1781415041000,-500.0,0.00027945,8]
[425012004,1781415041000,-779.21,0.00027945,8]
[425012009,1781415041000,-500.0,0.00027945,8]
[425012000,1781415041000,-500.0,0.00027945,8]
[425011999,1781415041000,-500.0,0.00027945,8]
[425012010,1781415041000,-500.0,0.00027945,8]
[425012006,1781415041000,-521.9,0.00027945,8]
[425011996,1781415041000,-500.0,0.00027945,8]
[425012001,1781415041000,-500.0,0.00027945,8]
[425011967,1781415041000,-275.90797725,0.00027945,8]
[425012013,1781415041000,-500.0,0.00027945,8]
[425012008,1781415041000,-601.94,0.00027945,8]
[425012011,1781415041000,-556.76,0.00027945,8]
[425011997,1781415041000,-500.0,0.00027945,8]
[425012020,1781415041000,-811.39,0.00027945,8]
[425012012,1781415041000,-500.0,0.00027945,8]
[425012018,1781415041000,-523.52,0.00027945,8]
[425012017,1781415041000,-500.0,0.00027945,8]
[425012014,1781415041000,-537.56,0.00027945,8]
[425012019,1781415041000,-500.0,0.00027945,8]
[425012015,1781415041000,-500.0,0.00027945,8]
[425012016,1781415041000,-1289.85,0.00027945,8]
[425012021,1781415041000,-500.0,0.00027945,8]
[425012007,1781415041000,-500.0,0.00027945,8]
[425011994,1781415041000,-500.0,0.00027945,8]
[425011992,1781415041000,-500.0,0.00027945,8]
[425011993,1781415041000,-500.0,0.00027945,8]
[425011977,1781415041000,-500.0,0.00027945,8]
[425011969,1781415041000,-500.0,0.00027945,8]
[425011970,1781415041000,-500.0,0.00027945,8]
[425011973,1781415041000,-500.0,0.00027945,8]
[425011976,1781415041000,-1506.29,0.00027945,8]
[425011968,1781415041000,-613.7927008,0.00027945,8]
[425011971,1781415041000,-500.0,0.00027945,8]
[425011972,1781415041000,-500.0,0.00027945,8]
[425011974,1781415041000,-500.0,0.00027945,8]
[425011975,1781415041000,-423.96884496,0.00027945,8]
[425011978,1781415041000,-500.0,0.00027945,8]
[425011980,1781415041000,-500.0,0.00027945,8]
[425011979,1781415041000,-1286.88,0.00027945,8]
[425011982,1781415041000,-500.0,0.00027945,8]
[425011981,1781415041000,-2156.37,0.00027945,8]
[425011985,1781415041000,-471.34344129,0.00027945,8]
[425012025,1781415041000,-1633.28,0.00027945,8]
[425011983,1781415041000,-500.0,0.00027945,8]
[425011986,1781415041000,-531.68,0.00027945,8]
[425011984,1781415041000,-500.0,0.00027945,8]
[425011988,1781415041000,-500.0,0.00027945,8]
[425011990,1781415041000,-500.0,0.00027945,8]
[425011989,1781415041000,-1488.35,0.00027945,8]
[425011991,1781415041000,-599.77,0.00027945,8]
[425011995,1781415041000,-500.0,0.00027945,8]
[425011998,1781415041000,-500.0,0.00027945,8]
[425011987,1781415041000,-815.38,0.00027945,8]
[425012003,1781415041000,-500.0,0.00027945,8]
[425012030,1781415041000,-500.0,0.00027945,8]
[425012051,1781415041000,-500.0,0.00027945,8]
[425012056,1781415041000,-500.0,0.00027945,8]
[425012062,1781415041000,-671.22,0.00027945,8]
[425012064,1781415041000,-629.17,0.00027945,8]
[425012063,1781415041000,-1745.46,0.00027945,8]
[425012065,1781415041000,-500.0,0.00027945,8]
[425012057,1781415041000,-679.47,0.00027945,8]
[425012059,1781415041000,-564.22,0.00027945,8]
[425012058,1781415041000,-500.0,0.00027945,8]
[425012061,1781415041000,-500.0,0.00027945,8]
[425012060,1781415041000,-500.0,0.00027945,8]
[425012066,1781415041000,-575.17,0.00027945,8]
[425012068,1781415041000,-552.31,0.00027945,8]
[425012067,1781415041000,-500.0,0.00027945,8]
[425012072,1781415041000,-500.0,0.00027945,8]
[425012073,1781415041000,-515.11,0.00027945,8]
[425012076,1781415041000,-500.0,0.00027945,8]
[425012071,1781415041000,-500.0,0.00027945,8]
[425012078,1781415041000,-1348.17,0.00027945,8]
[425012074,1781415041000,-614.66,0.00027945,8]
[425012069,1781415041000,-707.44,0.00027945,8]
[425012075,1781415041000,-616.3211394,0.00027945,8]
[425012070,1781415041000,-890.71,0.00027945,8]
[425012077,1781415041000,-500.0,0.00027945,8]
[425012027,1781415041000,-806.3,0.00027945,8]
[425012050,1781415041000,-504.89900777,0.00027945,8]
[425012053,1781415041000,-788.11900777,0.00027945,8]
[425012026,1781415041000,-500.0,0.00027945,8]
[425012055,1781415041000,-627.59148956,0.00027945,8]
[425012054,1781415041000,-37.17851044,0.00027945,8]
[425012029,1781415041000,-500.0,0.00027945,8]
[425012024,1781415041000,-500.0,0.00027945,8]
[425012031,1781415041000,-500.0,0.00027945,8]
[425012022,1781415041000,-812.74,0.00027945,8]
[425012023,1781415041000,-500.0,0.00027945,8]
[425012032,1781415041000,-500.0,0.00027945,8]
[425012033,1781415041000,-412.73184353,0.00027945,8]
[425012035,1781415041000,-500.0,0.00027945,8]
[425012034,1781415041000,-500.0,0.00027945,8]
[425012036,1781415041000,-500.0,0.00027945,8]
[425012040,1781415041000,-757.43,0.00027945,8]
[425012028,1781415041000,-1359.23,0.00027945,8]
[425012037,1781415041000,-500.0,0.00027945,8]
[425012052,1781415041000,-131.10099223,0.00027945,8]
[425012046,1781415041000,-500.0,0.00027945,8]
[425012049,1781415041000,-354.90099223,0.00027945,8]
[425012039,1781415041000,-1597.46,0.00027945,8]
[425012047,1781415041000,-774.14,0.00027945,8]
[425012048,1781415041000,-500.0,0.00027945,8]
[425012043,1781415041000,-896.92,0.00027945,8]
[425012042,1781415041000,-500.0,0.00027945,8]
[425012044,1781415041000,-500.0,0.00027945,8]
[425012041,1781415041000,-500.0,0.00027945,8]
[425012038,1781415041000,-500.0,0.00027945,8]
[425012045,1781415041000,-500.0,0.00027945,8]
[425012115,1781415042000,-1031.4592598,0.00027945,8]
[425012114,1781415042000,-475.80353924,0.00027945,8]
[425012113,1781415042000,-154.75583122,0.00027945,8]
[425012109,1781415042000,-500.0,0.00027945,8]
[425012106,1781415042000,-500.0,0.00027945,8]
[425012107,1781415042000,-638.99916744,0.00027945,8]
[425012108,1781415042000,-500.0,0.00027945,8]
[425012105,1781415042000,-500.0,0.00027945,8]
[425012117,1781415042000,-26.10952873,0.00027945,8]
[425012110,1781415042000,-2290.01,0.00027945,8]
[425012118,1781415042000,-473.89047127,0.00027945,8]
[425012123,1781415042000,-500.0,0.00027945,8]
[425012119,1781415042000,-517.72,0.00027945,8]
[425012120,1781415042000,-926.35,0.00027945,8]
[425012121,1781415042000,-500.0,0.00027945,8]
[425012122,1781415042000,-500.0,0.00027945,8]
[425012125,1781415042000,-726.26,0.00027945,8]
[425012124,1781415042000,-528.77462848,0.00027945,8]
[425012126,1781415042000,-500.0,0.00027945,8]
[425012132,1781415042000,-500.0,0.00027945,8]
[425012127,1781415042000,-1220.26,0.00027945,8]
[425012129,1781415042000,-500.0,0.00027945,8]
[425012111,1781415042000,-500.0,0.00027945,8]
[425012116,1781415042000,-266.22136974,0.00027945,8]
[425012112,1781415042000,-525.21,0.00027945,8]
[425012092,1781415042000,-500.0,0.00027945,8]
[425012104,1781415042000,-775.9,0.00027945,8]
[425012079,1781415042000,-500.0,0.00027945,8]
[425012080,1781415042000,-1088.42,0.00027945,8]
[425012081,1781415042000,-500.0,0.00027945,8]
[425012082,1781415042000,-500.0,0.00027945,8]
[425012088,1781415042000,-1250.94,0.00027945,8]
[425012089,1781415042000,-1952.73,0.00027945,8]
[425012086,1781415042000,-244.11718561,0.00027945,8]
[425012084,1781415042000,-500.0,0.00027945,8]
[425012085,1781415042000,-500.0,0.00027945,8]
[425012083,1781415042000,-500.0,0.00027945,8]
[425012090,1781415042000,-1020.0,0.00027945,8]
[425012103,1781415042000,-500.0,0.00027945,8]
[425012087,1781415042000,-500.0,0.00027945,8]
[425012091,1781415042000,-978.97,0.00027945,7]
[425012093,1781415042000,-500.0,0.00027945,8]
[425012094,1781415042000,-500.0,0.00027945,8]
[425012095,1781415042000,-787.09,0.00027945,8]
[425012098,1781415042000,-1008.86,0.00027945,8]
[425012099,1781415042000,-500.0,0.00027945,8]
[425012096,1781415042000,-500.0,0.00027945,8]
[425012100,1781415042000,-500.0,0.00027945,8]
[425012097,1781415042000,-531.01,0.00027945,7]
[425012101,1781415042000,-500.0,0.00027945,8]
[425012102,1781415042000,-2280.24,0.00027945,8]
[425012130,1781415042000,-500.0,0.00027945,8]
[425012128,1781415042000,-977.24,0.00027945,8]
[425012140,1781415042000,-1678.62,0.00027945,8]
[425012134,1781415042000,-500.0,0.00027945,8]
[425012163,1781415042000,-500.0,0.00027945,8]
[425012161,1781415042000,-500.0,0.00027945,8]
[425012166,1781415042000,-500.0,0.00027945,8]
[425012131,1781415042000,-554.77,0.00027945,8]
[425012165,1781415042000,-540.71,0.00027945,8]
[425012168,1781415042000,-500.0,0.00027945,8]
[425012169,1781415042000,-1560.74,0.00027945,8]
[425012170,1781415042000,-500.0,0.00027945,8]
[425012177,1781415042000,-404.65949594,0.00027945,8]
[425012171,1781415042000,-500.0,0.00027945,8]
[425012172,1781415042000,-739.6643323,0.00027945,8]
[425012160,1781415042000,-500.0,0.00027945,8]
[425012173,1781415042000,-344.7356677,0.00027945,8]
[425012174,1781415042000,-500.0,0.00027945,8]
[425012176,1781415042000,-134.26050406,0.00027945,8]
[425012178,1781415042000,-500.0,0.00027945,8]
[425012179,1781415042000,-500.0,0.00027945,8]
[425012180,1781415042000,-506.23,0.00027945,8]
[425012181,1781415042000,-678.56,0.00027945,8]
[425012183,1781415042000,-500.0,0.00027945,8]
[425012182,1781415042000,-869.79,0.00027945,8]
[425012184,1781415042000,-500.0,0.00027945,8]
[425012185,1781415042000,-500.0,0.00027945,8]
[425012186,1781415042000,-1951.53,0.00027945,8]
[425012175,1781415042000,-2765.89,0.00027945,8]
[425012162,1781415042000,-500.0,0.00027945,8]
[425012164,1781415042000,-1212.61,0.00027945,8]
[425012167,1781415042000,-582.36,0.00027945,8]
[425012133,1781415042000,-500.0,0.00027945,8]
[425012144,1781415042000,-556.64,0.00027945,8]
[425012136,1781415042000,-240.23285049,0.00027945,8]
[425012135,1781415042000,-1356.84,0.00027945,8]
[425012143,1781415042000,-500.0,0.00027945,8]
[425012159,1781415042000,-569.66,0.00027945,8]
[425012137,1781415042000,-569.74,0.00027945,8]
[425012139,1781415042000,-500.0,0.00027945,8]
[425012141,1781415042000,-897.18,0.00027945,8]
[425012142,1781415042000,-295.05970001,0.00027945,8]
[425012147,1781415042000,-895.56,0.00027945,8]
[425012145,1781415042000,-500.0,0.00027945,8]
[425012138,1781415042000,-500.0,0.00027945,8]
[425012150,1781415042000,-500.0,0.00027945,8]
[425012149,1781415042000,-500.0,0.00027945,8]
[425012158,1781415042000,-500.0,0.00027945,8]
[425012156,1781415042000,-500.0,0.00027945,8]
[425012157,1781415042000,-1251.89,0.00027945,8]
[425012151,1781415042000,-500.0,0.00027945,8]
[425012155,1781415042000,-537.41,0.00027945,8]
[425012153,1781415042000,-578.0,0.00027945,8]
[425012148,1781415042000,-551.27946996,0.00027945,8]
[425012146,1781415042000,-692.5,0.00027945,8]
[425012154,1781415042000,-500.0,0.00027945,8]
[425012152,1781415042000,-638.36,0.00027945,8]
[425012196,1781415043000,-602.41,0.00027945,8]
[425012194,1781415043000,-500.0,0.00027945,8]
[425012198,1781415043000,-97.7191216,0.00027945,8]
[425012197,1781415043000,-500.0,0.00027945,8]
[425012195,1781415043000,-1370.23,0.00027945,8]
[425012190,1781415043000,-518.31,0.00027945,8]
[425012188,1781415043000,-500.0,0.00027945,8]
[425012193,1781415043000,-500.0,0.00027945,8]
[425012191,1781415043000,-177.5560443,0.00027945,8]
[425012189,1781415043000,-874.3,0.00027945,8]
[425012187,1781415043000,-1025.91,0.00027945,8]
[425012199,1781415043000,-324.27874104,0.00027936,2]
[425012192,1781415043000,-500.0,0.00027945,8]
[425012202,1781415043000,-402.2808784,0.00027945,8]
[425012206,1781415043000,-503.63,0.00027945,8]
[425012203,1781415043000,-2334.31,0.00027945,8]
[425012204,1781415043000,-500.0,0.00027945,8]
[425012212,1781415043000,-112.61727339,0.00027945,8]
[425012211,1781415043000,-228.42272661,0.00027945,8]
[425012213,1781415043000,-387.38272661,0.00027945,8]
[425012210,1781415043000,-271.57727339,0.00027945,8]
[425012208,1781415043000,-500.0,0.00027945,8]
[425012214,1781415043000,-500.0,0.00027945,8]
[425012209,1781415043000,-500.0,0.00027945,8]
[425012200,1781415043000,-500.0,0.00027936,2]
[425012215,1781415043000,-1291.48328217,0.00027945,8]
[425012201,1781415043000,-91.94840979,0.00027936,2]
[425012205,1781415043000,-500.0,0.00027945,8]
[425012207,1781415043000,-568.61,0.00027945,8]
[425012225,1781415044000,-1200.46,0.00027945,8]
[425012232,1781415044000,-150.51042638,0.00027945,8]
[425012230,1781415044000,-654.37,0.00027945,8]
[425012227,1781415044000,-518.20973236,0.00027945,3]
[425012226,1781415044000,-500.0,0.00027945,8]
[425012224,1781415044000,-500.0,0.00027945,8]
[425012221,1781415044000,-987.93,0.00027945,8]
[425012216,1781415044000,-356.95671783,0.00027945,8]
[425012223,1781415044000,-531.55,0.00027945,8]
[425012222,1781415044000,-1099.49,0.00027945,8]
[425012220,1781415044000,-1003.12,0.00027945,8]
[425012217,1781415044000,-500.0,0.00027945,8]
[425012218,1781415044000,-500.0,0.00027945,8]
[425012231,1781415044000,-500.0,0.00027945,8]
[425012219,1781415044000,-1811.24,0.00027945,8]
[425012229,1781415044000,-500.0,0.00027945,8]
[425012228,1781415044000,-93.39162527,0.00027945,3]
[425012244,1781415044000,-500.0,0.00027945,8]
[425012234,1781415044000,-199.68624725,0.00027945,8]
[425012249,1781415044000,-500.0,0.00027945,8]
[425012250,1781415044000,-376.90689513,0.00027945,8]
[425012246,1781415044000,-552.94,0.00027945,8]
[425012248,1781415044000,-912.53,0.00027945,8]
[425012240,1781415044000,-350.80819001,0.00027945,8]
[425012236,1781415044000,-912.82,0.00027945,8]
[425012239,1781415044000,-839.00180999,0.00027945,8]
[425012245,1781415044000,-1588.13,0.00027945,8]
[425012242,1781415044000,-634.38,0.00027945,8]
[425012238,1781415044000,-774.71,0.00027945,8]
[425012241,1781415044000,-500.0,0.00027945,8]
[425012247,1781415044000,-500.0,0.00027945,8]
[425012237,1781415044000,-500.0,0.00027945,8]
[425012235,1781415044000,-777.97,0.00027945,8]
[425012243,1781415044000,-462.16473822,0.00027945,8]
[425012233,1781415044000,-522.95,0.00027945,8]
[425012267,1781415046000,-500.0,0.00027945,8]
[425012265,1781415046000,-560.4,0.00027945,8]
[425012269,1781415046000,-500.0,0.00027945,8]
[425012266,1781415046000,-500.0,0.00027945,8]
[425012270,1781415046000,-500.0,0.00027945,8]
[425012263,1781415046000,-500.0,0.00027945,8]
[425012271,1781415046000,-500.0,0.00027945,8]
[425012264,1781415046000,-2216.26,0.00027945,8]
[425012268,1781415046000,-995.65,0.00027945,8]
[425012262,1781415046000,-500.0,0.00027945,8]
[425012252,1781415046000,-279.15689513,0.00027945,8]
[425012255,1781415046000,-500.0,0.00027945,8]
[425012254,1781415046000,-570.94,0.00027945,8]
[425012259,1781415046000,-500.0,0.00027945,8]
[425012260,1781415046000,-741.68,0.00027945,8]
[425012258,1781415046000,-636.28,0.00027945,8]
[425012257,1781415046000,-500.0,0.00027945,8]
[425012253,1781415046000,-220.84310487,0.00027945,8]
[425012256,1781415046000,-787.18,0.00027945,8]
[425012251,1781415046000,-221.84310487,0.00027945,8]
[425012277,1781415046000,-500.0,0.00027945,8]
[425012261,1781415046000,-1919.91,0.00027945,8]
[425012272,1781415046000,-605.94,0.00027945,8]
[425012275,1781415046000,-500.0,0.00027945,8]
[425012278,1781415046000,-1100.07,0.00027945,8]
[425012274,1781415046000,-830.68,0.00027945,8]
[425012298,1781415046000,-500.0,0.00027945,8]
[425012297,1781415046000,-500.0,0.00027945,8]
[425012295,1781415046000,-500.0,0.00027945,8]
[425012288,1781415046000,-1023.56,0.00027945,8]
[425012289,1781415046000,-500.0,0.00027945,8]
[425012285,1781415046000,-500.0,0.00027945,8]
[425012287,1781415046000,-1341.19,0.00027945,8]
[425012290,1781415046000,-500.0,0.00027945,8]
[425012286,1781415046000,-500.0,0.00027945,8]
[425012292,1781415046000,-793.99,0.00027945,8]
[425012296,1781415046000,-500.0,0.00027945,8]
[425012283,1781415046000,-500.0,0.00027945,8]
[425012291,1781415046000,-500.0,0.00027945,8]
[425012280,1781415046000,-846.65,0.00027945,8]
[425012281,1781415046000,-697.82,0.00027945,8]
[425012282,1781415046000,-2873.83,0.00027945,8]
[425012279,1781415046000,-735.69,0.00027945,8]
[425012284,1781415046000,-500.0,0.00027945,8]
[425012293,1781415046000,-500.0,0.00027945,8]
[425012294,1781415046000,-500.0,0.00027945,8]
[425012276,1781415046000,-500.0,0.00027945,8]
[425012273,1781415046000,-500.0,0.00027945,8]
[425012323,1781415047000,-500.0,0.00027945,8]
[425012336,1781415047000,-500.0,0.00027945,8]
[425012325,1781415047000,-500.0,0.00027945,8]